bitfinex/quotes_ETHUSD_20250520
["timestamp","ask_amount","ask_price","bid_price","bid_amount"]
[1747709347107,5.41727774,2568.2,2568.1,0.47448976]
[1747709347316,5.46595911,2568.2,2568.1,0.47448976]
[1747709347511,7.00784029,2568.6,2568.1,0.47448976]
[1747709347512,1.5173,2568.6,2568.1,0.47448976]
[1747709347716,3.89377774,2568.2,2568.1,0.47448976]
[1747709348345,3.89377774,2568.2,2568.1,0.02]
[1747709350036,1.5173,2568.6,2568.1,0.02]
[1747709350223,3.89377774,2568.2,2568.1,0.02]
[1747709350407,4.28315551,2568.2,2568.1,0.02]
[1747709350606,5.84913556,2568.2,2568.1,0.02]
[1747709350814,5.80045551,2568.2,2568.1,0.02]
[1747709351019,13.80045551,2568.2,2568.1,0.02]
[1747709351222,5.80045551,2568.2,2568.1,0.02]
[1747709354441,3.89468764,2567.6,2567.5,9.78822314]
[1747709354799,11.89468764,2567.6,2567.5,9.78822314]
[1747709355338,13.40038764,2567.6,2567.5,9.78822314]
[1747709356205,13.78318435,2567.6,2567.5,9.78822314]
[1747709356403,16.74562521,2567.6,2567.5,9.78822314]
[1747709357740,8.74562521,2567.6,2567.5,9.78822314]
[1747709357952,5.78318435,2567.6,2567.5,9.78822314]
[1747709358489,5.78318435,2567.6,2566.1,11.91690165]
[1747709358490,0.20258155,2563.8,2561.3,12.35346214]
[1747709358607,3.13732123,2561.4,2559.6,1.170252]
[1747709358962,3.90686044,2559.6,2558.7,1.5701]
[1747709359105,3.90426736,2561.3,2559.1,0.21530361]
[1747709359310,3.90686044,2559.6,2559.1,0.02]
[1747709359655,1.6356,2561.1,2559.1,0.02]
[1747709359656,0.04884646,2560.4,2559.5,23.78608989]
[1747709359819,4.14784646,2560.4,2559.6,16.829]
[1747709360018,1.6356,2561.1,2559.7,10.476]
[1747709360420,3.90566535,2560.4,2559.7,10.476]
[1747709360754,0.38065622,2561.3,2559.7,10.476]
[1747709360909,0.32403326,2560.3,2559.8,1.5701]
[1747709361111,0.32403326,2560.3,2559.9,1.20461]
[1747709361310,0.04838743,2561.2,2559.9,14.579636]
[1747709361611,0.32403326,2561.1,2559.9,1.20461]
[1747709361810,0.32403326,2561.1,2560.1,8.0]
[1747709362011,3.90350534,2561.8,2560.2,1.60914725]
[1747709362264,0.02,2561.9,2560.4,8.0]
[1747709362551,0.02,2561.9,2560.5,0.03904061]
[1747709362843,3.90352885,2561.8,2560.8,1.5741]
[1747709363007,0.02,2561.9,2560.8,1.5741]
[1747709363208,0.02,2561.9,2561.0,8.0]
[1747709363437,0.02,2561.9,2561.3,3.90426736]
[1747709363612,0.02,2561.9,2561.6,0.55]
[1747709363808,0.46164455,2562.5,2561.8,8.0]
[1747709364010,0.78567781,2562.5,2561.9,0.55]
[1747709364229,0.46164455,2562.5,2561.9,0.55]
[1747709364444,0.46164455,2562.5,2562.1,0.55]
[1747709364647,3.92185235,2562.9,2562.1,0.55]
[1747709364812,0.02,2562.9,2562.1,0.55]
[1747709365012,3.9024696,2562.5,2562.0,0.855]
[1747709365219,3.90227022,2562.7,2562.2,8.0]
[1747709365453,0.02,2562.9,2562.3,1.9162]
[1747709365839,0.02,2562.9,2562.4,9.5741]
[1747709366150,0.02,2562.9,2562.6,8.0]
[1747709366151,3.92188018,2562.9,2562.6,8.0]
[1747709366351,3.90213446,2562.7,2562.6,8.0]
[1747709366508,3.90213446,2562.7,2562.6,36.004]
[1747709366947,0.02,2562.9,2562.6,36.004]
[1747709367115,3.90211404,2562.8,2562.7,2.20990827]
[1747709368567,3.90213446,2562.7,2562.6,16.84]
[1747709368773,3.90213446,2562.7,2562.6,28.004]
[1747709369073,3.90213446,2562.7,2562.6,28.005]
[1747709370073,3.90213446,2562.7,2562.6,26.69910728]
[1747709372089,3.90213446,2562.7,2562.6,15.53410728]
[1747709372392,3.90213446,2562.7,2562.6,26.70110728]
[1747709372543,3.90213446,2562.7,2562.1,14.5]
[1747709372544,3.90304828,2562.1,2561.3,1.5719]
[1747709372754,0.02,2562.9,2562.1,16.844]
[1747709373092,0.02,2562.9,2562.2,8.0]
[1747709373393,0.02,2562.9,2562.4,8.0]
[1747709373544,0.02,2562.9,2562.7,8.0]
[1747709373745,0.02,2562.9,2562.8,11.69331127]
[1747709374046,0.02,2562.9,2562.8,23.69022627]
[1747709374352,3.92182995,2562.9,2562.8,22.5]
[1747709374575,3.92182995,2562.9,2562.8,36.011]
[1747709375087,0.02,2562.9,2562.8,36.011]
[1747709375576,3.92182995,2562.9,2562.8,36.011]
[1747709375880,0.02,2562.9,2562.8,36.011]
[1747709376081,0.02,2562.9,2562.8,24.844]
[1747709376082,3.92182995,2562.9,2562.8,24.844]
[1747709376280,3.92182995,2562.9,2562.8,28.011]
[1747709376581,3.92182995,2562.9,2562.8,16.844]
[1747709376780,3.92182995,2562.9,2562.8,28.011]
[1747709377481,3.92182995,2562.9,2562.8,16.844]
[1747709377685,3.92182995,2562.9,2562.8,28.011]
[1747709378041,3.92182995,2562.9,2562.8,16.844]
[1747709378450,3.92182995,2562.9,2562.8,28.011]
[1747709379783,3.92182995,2562.9,2562.8,27.705]
[1747709381306,0.02,2562.9,2562.8,27.706]
[1747709381505,0.02,2562.9,2562.8,31.60836288]
[1747709381797,3.92182995,2562.9,2562.8,28.74636288]
[1747709382101,3.92182995,2562.9,2562.8,24.844]
[1747709382306,3.90259132,2562.4,2562.3,1.5719]
[1747709382504,0.02,2562.9,2562.4,8.0]
[1747709382505,3.90232043,2562.6,2562.4,8.0]
[1747709382801,3.9021676,2562.7,2562.4,11.72789]
[1747709384015,3.9021676,2562.7,2562.6,8.0]
[1747709384882,3.90252022,2562.5,2562.4,8.0]
[1747709385101,3.90235406,2562.6,2562.4,33.362]
[1747709385309,3.9020014,2562.8,2562.4,33.362]
[1747709385517,0.02,2562.9,2562.6,8.0]
[1747709385518,3.92189628,2562.9,2562.6,8.0]
[1747709385683,3.92189628,2562.9,2562.3,1.5719]
[1747709385684,3.90259132,2562.4,2562.3,1.5719]
[1747709386015,3.90259132,2562.4,2561.3,3.90425549]
[1747709386016,3.90296054,2562.2,2561.7,1.6112]
[1747709386178,3.9019822,2562.8,2561.8,14.5]
[1747709386384,3.90350534,2561.8,2561.7,1.6112]
[1747709386685,3.90243902,2562.5,2561.1,1.6112]
[1747709386991,3.90337875,2561.9,2561.7,14.5]
[1747709387193,3.90337875,2561.9,2561.8,10.862]
[1747709387706,0.36966597,2561.9,2561.8,10.862]
[1747709387916,4.27313583,2561.9,2561.8,18.862]
[1747709388418,4.27313583,2561.9,2561.8,35.707]
[1747709388419,0.73145426,2561.9,2561.8,35.707]
[1747709389397,4.63480724,2561.9,2561.8,35.707]
[1747709389596,0.73145426,2561.9,2561.8,35.707]
[1747709389996,0.73145426,2561.9,2561.8,45.91600534]
[1747709390307,0.73145426,2561.9,2561.8,49.28198922]
[1747709390511,0.73145426,2561.9,2561.8,49.83198922]
[1747709390512,0.36966597,2561.9,2561.8,49.83198922]
[1747709391334,0.60363401,2562.2,2562.1,3.90304828]
[1747709391524,0.60363401,2562.2,2562.1,19.04834828]
[1747709391725,0.60363401,2562.2,2562.1,19.57094828]
[1747709392010,3.90230539,2562.6,2562.2,8.0]
[1747709392420,0.60363401,2562.7,2562.2,11.90281464]
[1747709392421,4.50588302,2562.7,2562.2,11.90281464]
[1747709392740,0.60363401,2562.7,2562.4,8.0]
[1747709392960,0.60363401,2562.7,2562.4,11.90256908]
[1747709393232,0.60363401,2562.7,2562.6,9.5471]
[1747709393534,0.60363401,2562.7,2562.6,8.24085655]
[1747709394414,0.60363401,2562.7,2562.6,29.69272345]
[1747709394819,0.60363401,2562.7,2562.6,20.01519345]
[1747709395017,0.60363401,2562.7,2562.6,22.40129345]
[1747709395217,3.9219065,2562.9,2562.7,8.0]
[1747709395423,3.9219065,2562.9,2562.8,16.846]
[1747709395736,3.9219065,2562.9,2562.8,41.906]
[1747709395945,0.02,2562.9,2562.8,41.906]
[1747709396240,0.02,2562.9,2562.8,60.75791124]
[1747709396437,0.02,2562.9,2562.8,64.65989344]
[1747709396829,0.02,2562.9,2562.8,65.20989344]
[1747709398660,0.02,2562.9,2562.8,66.71059344]
[1747709398886,0.02,2563.9,2562.9,8.0]
[1747709399058,0.02,2563.9,2563.6,9.5007]
[1747709399224,0.02,2563.9,2563.7,10.559]
[1747709399426,0.02,2563.9,2563.8,39.343]
[1747709399957,3.92030812,2563.9,2563.8,49.902]
[1747709400172,0.02,2563.9,2563.8,49.902]
[1747709400470,0.02,2563.9,2563.8,63.077696]
[1747709400624,0.02,2563.9,2563.8,52.084451]
[1747709400825,0.02,2563.9,2563.8,60.23849125]
[1747709401568,0.02,2563.9,2563.8,39.343]
[1747709401770,0.02,2563.9,2563.8,49.902]
[1747709402957,0.02,2563.9,2563.8,52.177209]
[1747709403157,0.02,2563.9,2563.8,52.175209]
[1747709403458,0.02,2563.9,2563.8,57.29000615]
[1747709403675,0.02,2563.9,2563.8,57.84000615]
[1747709404221,0.02,2563.9,2563.8,45.00779715]
[1747709404430,0.02,2563.9,2563.8,22.89616084]
[1747709404666,3.92030812,2563.9,2563.8,49.898]
[1747709404956,3.92030812,2563.9,2563.8,41.898]
[1747709405175,3.92032064,2563.9,2562.7,1.5683]
[1747709405329,3.90085207,2563.6,2563.1,3.9014014]
[1747709405524,0.02,2563.9,2563.2,14.5]
[1747709405722,0.02,2563.9,2563.2,18.40134494]
[1747709405920,3.90074455,2563.7,2563.2,18.40134494]
[1747709406156,3.90046025,2563.8,2563.3,8.0]
[1747709406364,0.02,2563.9,2563.4,10.555]
[1747709406365,3.9203374,2563.9,2563.4,10.555]
[1747709406562,0.02,2563.9,2563.5,3.90080943]
[1747709406771,0.02,2563.9,2563.6,22.5]
[1747709406956,0.02,2563.9,2563.6,26.40068187]
[1747709407129,0.02,2563.9,2563.6,22.5]
[1747709407330,0.02,2563.9,2563.7,8.0]
[1747709407526,0.02,2563.9,2563.8,24.838]
[1747709407966,0.02,2563.9,2563.8,49.596]
[1747709408731,0.02,2563.9,2563.8,62.13892325]
[1747709408927,0.02,2563.9,2563.8,61.24032013]
[1747709409127,0.02,2563.9,2563.8,56.35155625]
[1747709409763,0.02,2563.9,2563.8,63.27934025]
[1747709409965,0.02,2563.9,2563.8,47.17634025]
[1747709410139,0.02,2563.9,2563.8,63.27934025]
[1747709410343,0.02,2563.9,2563.8,63.82934025]
[1747709410559,0.02,2563.9,2563.8,67.73170313]
[1747709415091,0.02,2563.9,2563.8,69.36050313]
[1747709415584,0.02,2563.9,2563.8,71.69650313]
[1747709416251,0.02,2563.9,2563.8,55.59350313]
[1747709416467,0.02,2563.9,2563.8,71.69450313]
[1747709416665,0.02,2564.9,2564.8,4.44893948]
[1747709416851,0.02,2564.9,2564.8,39.53993948]
[1747709417054,0.02,2564.9,2564.8,46.4992094]
[1747709417241,0.02,2564.9,2564.8,60.9992094]
[1747709417643,0.02,2564.9,2564.8,35.72165792]
[1747709417853,0.02,2564.9,2564.8,54.50641848]
[1747709418581,0.02,2564.9,2564.8,62.50641848]
[1747709419011,0.02,2564.9,2564.8,62.88967622]
[1747709419914,0.02,2564.9,2564.8,62.58267622]
[1747709421888,0.02,2565.9,2565.7,3.89755235]
[1747709422087,0.02,2565.9,2565.8,32.144983]
[1747709422300,0.02,2565.9,2565.8,33.8669579]
[1747709422780,0.02,2565.9,2565.8,20.439676]
[1747709422983,0.02,2565.9,2565.8,32.9739599]
[1747709424125,0.02,2565.9,2565.8,33.7810579]
[1747709424833,0.02,2565.9,2565.8,41.7810579]
[1747709424991,0.02,2565.9,2565.8,16.831]
[1747709425188,3.91726801,2565.9,2565.8,16.831]
[1747709425603,0.02,2565.9,2565.8,30.9568]
[1747709425789,0.02,2565.9,2565.8,37.175361]
[1747709426105,0.02,2565.9,2565.8,40.916361]
[1747709426313,0.02,2565.9,2565.8,24.831]
[1747709426513,0.02,2565.9,2565.8,45.0260109]
[1747709426707,0.02,2565.9,2565.8,41.128591]
[1747709427044,0.02,2565.9,2565.8,24.831]
[1747709427325,0.02,2565.9,2565.8,26.775]
[1747709427496,0.02,2565.9,2565.8,37.9054]
[1747709427693,0.02,2565.9,2565.8,34.775]
[1747709429527,0.02,2565.9,2565.8,24.831]
[1747709429727,5.96038072,2565.9,2565.8,26.775]
[1747709430901,5.96038072,2565.9,2565.8,16.831]
[1747709431092,3.89896435,2564.8,2564.4,1.6115]
[1747709431294,3.89817955,2565.3,2565.2,16.826]
[1747709431494,3.89817955,2565.3,2565.2,26.77]
[1747709431691,1.99435718,2565.6,2565.2,34.77]
[1747709431897,1.6046,2565.6,2565.2,34.77]
[1747709432094,1.6046,2565.6,2565.3,8.0]
[1747709432727,5.50237344,2565.6,2565.3,8.0]
[1747709433249,5.50236023,2565.6,2565.3,8.0]
[1747709433549,3.89799165,2565.5,2565.3,8.0]
[1747709433759,3.89802759,2565.4,2565.3,8.0]
[1747709433963,3.89802759,2565.4,2565.3,17.945]
[1747709434558,5.50239143,2565.6,2565.3,17.945]
[1747709434876,3.89802759,2565.4,2565.3,8.0]
[1747709435031,3.89802759,2565.4,2565.3,17.646]
[1747709436767,3.89795872,2565.5,2565.3,17.646]
[1747709436963,1.6046,2565.6,2565.3,17.646]
[1747709437267,5.50241501,2565.6,2565.3,17.646]
[1747709437763,3.8978908,2565.5,2565.3,17.646]
[1747709438467,3.89788479,2565.5,2565.3,17.646]
[1747709439167,3.89802759,2565.4,2565.3,17.646]
[1747709439669,5.50236119,2565.6,2565.3,17.646]
[1747709439970,3.89790736,2565.5,2565.3,17.646]
[1747709440546,1.6046,2565.6,2565.3,17.646]
[1747709440773,3.89745008,2565.8,2565.3,21.54836288]
[1747709440967,3.91727896,2565.9,2565.3,21.54409519]
[1747709441142,3.89750415,2565.8,2565.3,21.54409519]
[1747709441358,3.89750415,2565.8,2565.4,3.89800968]
[1747709441886,3.91731828,2565.9,2565.4,3.89801117]
[1747709442051,3.89743958,2565.8,2565.4,3.89801117]
[1747709442253,3.91731828,2565.9,2565.4,3.89801117]
[1747709442583,3.91731828,2565.9,2565.3,8.0]
[1747709442584,0.95340715,2565.9,2565.3,8.0]
[1747709442772,3.89817955,2565.3,2565.2,16.826]
[1747709442970,3.89817955,2565.3,2565.2,34.472]
[1747709443186,3.89875551,2565.0,2564.7,1.6284]
[1747709443360,3.89878747,2564.9,2564.8,26.473]
[1747709443769,3.89878747,2564.9,2564.8,34.473]
[1747709443972,3.89878747,2564.9,2564.8,16.827]
[1747709444178,3.89878747,2564.9,2563.8,3.90042829]
[1747709444179,3.89939342,2564.6,2563.7,12.58941318]
[1747709444389,0.77974528,2564.9,2563.8,26.475]
[1747709444698,3.8991439,2564.7,2564.2,3.8998485]
[1747709444899,3.8991439,2564.7,2564.3,8.0]
[1747709445108,3.8991439,2564.7,2564.5,8.0]
[1747709445270,0.2181562,2565.1,2564.5,8.0]
[1747709445470,3.8994283,2564.5,2564.0,8.0]
[1747709445665,3.89863547,2565.0,2564.0,11.76038375]
[1747709445972,3.89962107,2564.4,2564.1,17.647]
[1747709446800,3.89969128,2564.4,2564.0,3.76038375]
[1747709446981,3.89895506,2564.8,2564.1,17.648]
[1747709447383,3.89968526,2564.4,2564.1,17.648]
[1747709448404,3.89948068,2564.5,2564.1,17.648]
[1747709449010,3.89848348,2565.1,2563.9,8.0]
[1747709449172,3.89971203,2564.3,2564.2,9.648]
[1747709449371,3.89961099,2564.4,2564.2,9.648]
[1747709449604,3.89986968,2564.2,2563.9,8.0]
[1747709449809,3.89969663,2564.4,2564.3,8.0]
[1747709450022,3.89969663,2564.4,2564.3,9.648]
[1747709450208,3.90030812,2563.9,2563.8,16.828]
[1747709450508,3.90030812,2563.9,2563.8,26.477]
[1747709451112,3.90024016,2564.0,2563.9,8.0]
[1747709451314,3.90024016,2564.0,2563.8,26.477]
[1747709451518,3.90030812,2563.9,2563.8,16.828]
[1747709451713,3.90030812,2563.9,2563.8,34.189]
[1747709451918,3.900156,2564.0,2563.9,8.0]
[1747709452822,3.900156,2564.0,2563.9,17.361]
[1747709453422,3.900156,2564.0,2563.9,17.362]
[1747709454316,3.89983755,2564.3,2563.9,17.362]
[1747709454522,3.900156,2564.0,2563.9,17.362]
[1747709454920,3.90009075,2564.1,2563.9,17.362]
[1747709455126,3.89985938,2564.2,2563.9,17.362]
[1747709455417,3.90000558,2564.1,2563.9,17.362]
[1747709455624,3.900156,2564.0,2563.9,17.362]
[1747709455792,3.900156,2564.0,2563.9,17.363]
[1747709456118,3.90006285,2564.1,2563.9,17.363]
[1747709456830,3.900156,2564.0,2563.9,17.363]
[1747709457594,3.90008074,2564.1,2563.9,17.363]
[1747709458227,3.900156,2564.0,2563.9,8.0]
[1747709458527,3.900156,2564.0,2563.9,17.363]
[1747709458729,3.90030812,2563.9,2563.8,24.828]
[1747709458931,3.90030812,2563.9,2563.8,34.191]
[1747709459502,3.90030812,2563.9,2563.8,24.828]
[1747709459698,3.90030812,2563.9,2563.8,34.191]
[1747709460539,3.90030812,2563.9,2563.8,24.828]
[1747709460726,3.90030812,2563.9,2563.8,34.191]
[1747709461237,1.6121,2564.5,2563.8,34.191]
[1747709461434,1.6121,2564.5,2563.8,24.828]
[1747709461435,3.90030812,2563.9,2563.8,24.828]
[1747709461745,3.90007411,2564.1,2563.8,34.191]
[1747709461930,3.90028993,2564.0,2563.8,34.191]
[1747709462105,1.6121,2564.5,2563.9,8.0]
[1747709462306,3.89967936,2564.4,2563.9,11.90030138]
[1747709462545,3.89963833,2564.4,2563.9,11.90022971]
[1747709462732,3.89861795,2565.1,2563.9,11.90022971]
[1747709462733,1.5546,2564.9,2564.1,13.4861039]
[1747709462941,1.5546,2565.2,2564.2,0.03898516]
[1747709463106,1.5546,2565.2,2564.2,3.9388171]
[1747709463437,3.89851136,2565.1,2564.7,8.0]
[1747709463614,1.5546,2565.2,2564.8,26.2]
[1747709463829,1.5546,2565.2,2565.0,3.89855229]
[1747709464029,0.46400491,2565.5,2565.0,3.89859652]
[1747709464235,0.46400491,2565.5,2565.1,3.89841023]
[1747709464757,0.46400491,2565.5,2565.1,9.61900671]
[1747709464934,0.46400491,2565.5,2565.4,8.0]
[1747709465133,0.46400491,2565.5,2565.4,17.364]
[1747709465775,3.89798478,2565.5,2565.4,9.362]
[1747709466247,3.89817081,2565.4,2564.9,12.29161181]
[1747709466637,3.89817081,2565.4,2565.0,9.362]
[1747709466837,3.89777282,2565.6,2565.0,9.362]
[1747709467239,3.89799849,2565.5,2565.0,13.26061693]
[1747709467437,3.91730013,2565.9,2565.0,13.26061693]
[1747709467438,3.89764638,2565.7,2565.2,11.8982926]
[1747709467773,3.89765822,2565.7,2565.2,11.89822611]
[1747709467918,3.89744721,2565.8,2565.2,11.89822611]
[1747709468118,3.89744721,2565.8,2565.3,3.89812046]
[1747709468430,0.02,2565.9,2565.2,3.89833151]
[1747709468754,3.91733549,2565.9,2565.5,8.0]
[1747709468920,3.91733549,2565.9,2565.6,9.361]
[1747709469123,0.02,2565.9,2565.7,8.0]
[1747709469337,0.02,2565.9,2565.8,24.832]
[1747709469758,3.91726801,2565.9,2565.8,24.832]
[1747709470332,0.02,2565.9,2565.8,24.832]
[1747709470854,0.02,2565.9,2565.8,28.7294199]
[1747709471564,0.02,2565.9,2565.8,45.82875804]
[1747709471765,3.89600716,2566.8,2566.3,3.89664475]
[1747709471966,0.02,2566.9,2566.4,17.065]
[1747709472173,0.02,2566.9,2566.5,13.56851249]
[1747709472469,3.91253509,2566.6,2566.5,8.0]
[1747709472765,3.91253509,2566.6,2565.0,6.48931934]
[1747709472766,3.89666056,2566.3,2566.2,16.83]
[1747709472928,3.89666056,2566.3,2566.2,25.895]
[1747709473466,3.89666056,2566.3,2566.2,33.895]
[1747709475433,0.01633,2566.6,2566.5,3.8963569]
[1747709475624,0.01633,2566.6,2566.5,9.064]
[1747709477028,0.01633,2566.6,2566.5,17.064]
[1747709477333,0.01633,2566.6,2566.5,20.9603569]
[1747709477538,0.01633,2566.6,2566.5,21.5103569]
[1747709477761,0.01633,2566.6,2566.5,12.4463569]
[1747709478057,0.01633,2566.6,2566.5,33.36997259]
[1747709478260,0.01633,2566.6,2566.5,23.39647643]
[1747709478458,0.01633,2566.6,2566.5,30.10199259]
[1747709479177,0.01633,2566.6,2566.5,15.19699259]
[1747709479541,0.01633,2566.6,2566.5,24.25999259]
[1747709479736,0.01633,2566.6,2566.5,9.506]
[1747709479944,3.91253509,2566.6,2566.5,25.889]
[1747709480145,3.91253509,2566.6,2566.5,33.889]
[1747709480771,0.01633,2566.6,2566.5,25.888]
[1747709481271,0.01633,2566.6,2566.5,33.888]
[1747709481484,3.91253509,2566.6,2566.5,33.888]
[1747709481896,3.89689339,2566.2,2565.8,1.506]
[1747709482056,1.5262,2566.5,2565.9,25.886]
[1747709482260,3.89686424,2566.2,2565.9,25.886]
[1747709482984,3.89686424,2566.2,2565.9,16.824]
[1747709483185,3.89686424,2566.2,2566.1,8.0]
[1747709483685,3.89674191,2566.3,2566.1,17.062]
[1747709483885,3.89674191,2566.3,2566.2,17.062]
[1747709484485,3.89674191,2566.3,2566.2,8.0]
[1747709484793,3.89711613,2566.0,2565.9,16.824]
[1747709485092,3.89711613,2566.0,2565.9,33.886]
[1747709485787,3.89703614,2566.1,2566.0,8.0]
[1747709487156,1.5262,2566.5,2566.0,8.0]
[1747709487361,3.89659815,2566.4,2566.0,8.0]
[1747709487962,5.42260983,2566.5,2566.0,11.89704189]
[1747709488168,3.89652351,2566.4,2566.0,11.89708929]
[1747709488690,5.4226213,2566.5,2566.0,11.89708929]
[1747709488902,3.89651366,2566.4,2566.0,11.89708929]
[1747709489212,5.4226419,2566.5,2566.0,11.89708929]
[1747709489419,3.89650872,2566.4,2566.0,8.0]
[1747709489596,3.89688674,2566.2,2566.0,8.0]
[1747709490126,3.89696426,2566.1,2566.0,8.0]
[1747709490520,3.89696426,2566.1,2566.0,17.062]
[1747709492014,3.89696426,2566.1,2565.5,1.5179]
[1747709492216,3.89775643,2565.6,2565.4,16.824]
[1747709492515,3.89775643,2565.6,2565.5,9.062]
[1747709492723,3.89775643,2565.6,2565.5,17.062]
[1747709493790,5.42267394,2565.8,2565.4,16.824]
[1747709493791,3.89787565,2565.5,2565.4,16.824]
[1747709494010,3.89787565,2565.5,2565.4,25.886]
[1747709494741,1.5252,2565.8,2565.4,25.886]
[1747709494927,1.5252,2565.8,2565.4,29.7840257]
[1747709495129,1.5252,2565.8,2565.4,29.78401691]
[1747709495735,3.89735362,2565.9,2565.4,29.78401691]
[1747709496259,3.89748873,2565.8,2565.4,25.886]
[1747709496908,0.38974887,2565.8,2565.4,16.824]
[1747709497109,3.89754339,2565.8,2565.5,9.062]
[1747709497362,1.6427,2566.1,2565.5,9.062]
[1747709497509,3.89687972,2566.2,2565.7,3.89749677]
[1747709498005,3.89717067,2566.0,2565.6,3.89771267]
[1747709498228,3.89693715,2566.2,2565.7,3.89753626]
[1747709498421,3.8969738,2566.1,2565.7,3.89753626]
[1747709499460,3.89650872,2566.4,2565.8,3.89736467]
[1747709499752,3.89676637,2566.3,2565.8,3.89736467]
[1747709499909,3.8968157,2566.2,2565.7,6.54832835]
[1747709500537,3.89706172,2566.1,2565.6,3.89770614]
[1747709500743,3.89691446,2566.2,2565.8,8.0]
[1747709501562,1.5413,2566.5,2565.8,8.0]
[1747709501711,0.01633,2566.6,2566.2,3.89672743]
[1747709501911,0.01633,2566.6,2566.5,3.8963569]
[1747709502127,0.01633,2566.6,2566.5,41.53282701]
[1747709502335,0.01633,2566.6,2566.5,42.03083649]
[1747709502523,0.01633,2566.6,2566.5,56.53083649]
[1747709503148,0.01633,2566.6,2566.5,55.44387265]
[1747709503317,0.01633,2566.6,2566.5,65.00780765]
[1747709505152,0.01633,2566.6,2566.5,47.22073665]
[1747709505359,0.01633,2566.6,2566.5,40.8383]
[1747709505560,0.01633,2566.6,2566.5,49.8653]
[1747709505765,0.01633,2566.6,2566.5,39.325]
[1747709506062,0.01633,2566.6,2566.5,48.352]
[1747709506240,0.01633,2566.6,2566.5,16.825]
[1747709506624,0.01633,2566.6,2566.5,28.7213569]
[1747709506865,0.01633,2566.6,2566.5,44.6006329]
[1747709507174,0.01633,2566.6,2566.5,43.82731978]
[1747709507323,0.01633,2566.6,2566.5,47.11481362]
[1747709507943,0.02,2566.9,2566.5,47.11481362]
[1747709508160,3.89394392,2568.1,2567.5,5.44426515]
[1747709508454,3.89394392,2568.1,2567.7,8.0]
[1747709508455,3.89409362,2568.0,2567.7,8.0]
[1747709509039,3.91425203,2567.9,2567.7,8.0]
[1747709509260,3.89453596,2567.7,2567.6,16.821]
[1747709509459,3.89461211,2567.7,2567.3,8.0]
[1747709509666,3.89447444,2567.8,2567.4,25.847]
[1747709509838,3.89447444,2567.8,2567.5,8.0]
[1747709510043,3.89453596,2567.7,2567.6,25.844]
[1747709512439,3.89446533,2567.8,2567.6,25.844]
[1747709512847,0.02,2567.9,2567.6,25.844]
[1747709513045,3.89443581,2567.8,2567.6,28.89394539]
[1747709513245,3.89453596,2567.7,2567.6,33.844]
[1747709514773,3.89453596,2567.7,2567.6,16.819]
[1747709515080,3.89453596,2567.7,2567.6,25.843]
[1747709516168,3.89445325,2567.8,2567.6,25.843]
[1747709517168,3.89453596,2567.7,2567.6,25.843]
[1747709518989,3.89453596,2567.7,2567.6,25.842]
[1747709519549,6.22933073,2567.7,2567.6,25.842]
[1747709519754,5.44843596,2567.7,2567.6,25.842]
[1747709520989,5.44843596,2567.7,2566.8,5.54167655]
[1747709520990,1.5539,2567.1,2566.8,16.816]
[1747709521136,3.89574973,2566.9,2566.8,16.816]
[1747709521340,3.89574973,2566.9,2566.8,25.839]
[1747709521537,3.89574973,2566.9,2566.8,16.816]
[1747709521742,3.8963569,2566.5,2566.2,9.92608149]
[1747709521966,3.89629264,2566.6,2566.2,11.8921941]
[1747709522153,3.89650872,2566.4,2566.3,25.841]
[1747709522477,3.89568668,2567.0,2566.3,25.841]
[1747709522685,3.89602704,2566.8,2566.4,8.0]
[1747709522843,1.5539,2567.1,2566.4,8.0]
[1747709523471,3.89606289,2566.7,2566.4,8.0]
[1747709523666,3.89606289,2566.7,2566.4,11.773772]
[1747709524179,3.8963569,2566.5,2566.4,8.0]
[1747709524388,3.8963569,2566.5,2566.4,17.024]
[1747709524544,3.89650872,2566.4,2566.3,16.817]
[1747709524879,3.89650872,2566.4,2566.3,25.841]
[1747709525281,3.89630577,2566.6,2566.3,25.841]
[1747709525587,3.89650872,2566.4,2566.3,33.841]
[1747709526151,3.89650872,2566.4,2566.3,24.817]
[1747709526352,3.89650872,2566.4,2566.3,33.842]
[1747709526558,3.89650872,2566.4,2566.3,25.842]
[1747709527177,1.5179,2566.2,2566.1,8.0]
[1747709527378,5.41473938,2566.2,2566.1,9.025]
[1747709527591,3.89606428,2566.7,2566.1,9.025]
[1747709527592,1.5849,2566.6,2566.1,9.025]
[1747709527769,1.5849,2566.9,2566.3,8.0]
[1747709527970,3.89590151,2566.8,2566.3,8.0]
[1747709528290,3.8968124,2566.2,2566.0,16.818]
[1747709528489,3.8968124,2566.2,2566.1,17.026]
[1747709529462,3.8968124,2566.2,2566.1,8.0]
[1747709529682,3.8968124,2566.2,2566.1,17.026]
[1747709530875,0.54808015,2566.8,2566.1,17.026]
[1747709531061,3.89652484,2566.4,2566.1,17.026]
[1747709531411,3.89642861,2566.5,2566.1,20.80011876]
[1747709531619,3.8963191,2566.6,2566.1,20.80011876]
[1747709531620,3.896586,2566.4,2566.1,20.80011876]
[1747709532254,3.89666884,2566.3,2566.1,20.80011876]
[1747709532459,3.89666884,2566.3,2566.1,17.026]
[1747709533603,3.89626214,2566.6,2566.1,17.026]
[1747709533890,3.89649139,2566.5,2566.1,17.026]
[1747709534658,3.89629913,2566.6,2566.1,20.92291833]
[1747709534855,1.5849,2566.9,2566.1,20.92291833]
[1747709534856,3.89612094,2566.7,2566.3,8.0]
[1747709535056,12.29323685,2567.7,2566.3,8.0]